bitfinex-derivatives/quotes_BTCF0:USTF0_20250626
["timestamp","ask_amount","ask_price","bid_price","bid_amount"]
[1750946308584,2.01648206,106970.0,106960.0,0.002]
[1750946308783,1.05064206,106970.0,106960.0,0.1889261]
[1750946308984,1.2332903,106970.0,106960.0,0.1889261]
[1750946310983,0.6282503,106970.0,106960.0,0.1889261]
[1750946311689,0.6282503,106970.0,106960.0,0.002]
[1750946311986,0.6284503,106970.0,106960.0,0.0022]
[1750946313986,0.6284503,106970.0,106960.0,0.363]
[1750946314179,0.5621503,106970.0,106960.0,0.363]
[1750946314379,0.5621503,106970.0,106960.0,0.4314]
[1750946314580,0.6284503,106970.0,106960.0,0.363]
[1750946315091,0.6284503,106970.0,106960.0,0.5499261]
[1750946315291,0.6284503,106970.0,106960.0,0.363]
[1750946315684,0.6284503,106970.0,106960.0,0.5499261]
[1750946317279,1.05084206,106970.0,106960.0,0.1891261]
[1750946317984,0.6284503,106970.0,106960.0,0.1891261]
[1750946318386,0.98903578,106970.0,106960.0,0.1891261]
[1750946319592,0.6284503,106970.0,106960.0,0.5499261]
[1750946319892,0.5621503,106970.0,106960.0,0.91051158]
[1750946320093,0.5621503,106970.0,106960.0,0.97641158]
[1750946320794,0.0352417,106970.0,106960.0,0.97641158]
[1750946321089,0.0252417,106970.0,106960.0,0.97641158]
[1750946321686,0.2121509,106970.0,106960.0,0.97641158]
[1750946322395,0.0252417,106970.0,106960.0,1.03821564]
[1750946324297,0.0352417,106970.0,106960.0,1.03821564]
[1750946328408,0.0132,106970.0,106960.0,1.03821564]
[1750946328999,0.03540163,106970.0,106960.0,1.03821564]
[1750946329306,0.03540163,106970.0,106960.0,0.6158261]
[1750946329508,0.03540163,106970.0,106960.0,1.03821564]
[1750946329804,0.0132,106970.0,106960.0,1.03821564]
[1750946333410,0.0132,106970.0,106960.0,1.66821564]
[1750946333709,0.3280232,107000.0,106990.0,0.1868743]
[1750946333910,0.69911586,107000.0,106990.0,1.1518743]
[1750946334207,0.76481586,107000.0,106990.0,1.1518743]
[1750946335408,0.76481586,107000.0,106990.0,0.5476743]
[1750946335605,0.76481586,107000.0,106990.0,0.3608]
[1750946335606,1.1872054,107000.0,106990.0,0.3608]
[1750946335808,0.1868743,106990.0,106980.0,1.4425186]
[1750946336108,0.68118569,106990.0,106980.0,1.39467857]
[1750946337107,0.68418569,106990.0,106980.0,1.39467857]
[1750946337508,0.68418569,106990.0,106980.0,0.001]
[1750946337509,1.47037523,106990.0,106980.0,0.001]
[1750946337712,1.47037523,106990.0,106980.0,0.1878918]
[1750946338415,1.44816384,106990.0,106980.0,0.1878918]
[1750946339914,1.08736384,106990.0,106980.0,0.1878918]
[1750946341012,0.68717396,106990.0,106980.0,0.1878918]
[1750946341412,1.1095635,106990.0,106980.0,0.1878918]
[1750946342319,1.10956025,106990.0,106980.0,0.1878918]
[1750946344117,0.68717071,106990.0,106980.0,0.5486918]
[1750946344522,0.68717071,106990.0,106980.0,0.90909174]
[1750946344912,0.68717071,106990.0,106980.0,0.94099174]
[1750946345112,1.02537424,106990.0,106980.0,0.5486918]
[1750946345819,0.6649743,106990.0,106980.0,0.5486918]
[1750946346718,0.6649743,106990.0,106980.0,0.5807918]
[1750946346915,0.6649743,106990.0,106980.0,0.6133918]
[1750946347113,0.5628743,106990.0,106980.0,0.97379174]
[1750946347313,0.2428743,106990.0,106980.0,0.97379174]
[1750946348519,0.26505023,106990.0,106980.0,0.97379174]
[1750946348722,0.26505023,106990.0,106980.0,1.57743174]
[1750946348918,0.26505023,106990.0,106980.0,1.2170318]
[1750946349220,0.07817593,106990.0,106980.0,1.57743174]
[1750946349421,0.02817593,106990.0,106980.0,1.57743174]
[1750946349715,0.23505023,106990.0,106980.0,1.57743174]
[1750946351220,0.04817593,106990.0,106980.0,1.57743174]
[1750946351409,0.04817593,106990.0,106980.0,1.57763174]
[1750946351410,0.23525023,106990.0,106980.0,1.57763174]
[1750946351915,0.21525023,106990.0,106980.0,1.2172318]
[1750946352118,0.21525023,106990.0,106980.0,1.57763174]
[1750946352514,0.02837593,106990.0,106980.0,1.57763174]
[1750946353008,0.02294708,106990.0,106980.0,1.93763174]
[1750946353210,0.00077115,106990.0,106980.0,1.93763174]
[1750946355015,0.2659429,107020.0,107010.0,0.1868394]
[1750946355220,0.64715956,107020.0,107010.0,1.66191934]
[1750946355421,0.64715956,107020.0,107010.0,1.76331934]
[1750946355721,0.61587829,107020.0,107010.0,1.76331934]
[1750946356024,0.56915729,107020.0,107010.0,1.76331934]
[1750946356623,0.57015729,107020.0,107010.0,1.76631934]
[1750946357225,0.5478219,107020.0,107010.0,1.76631934]
[1750946359729,0.5478219,107020.0,107010.0,1.01243934]
[1750946359932,0.5538219,107020.0,107010.0,1.4059994]
[1750946360118,0.6236219,107020.0,107010.0,1.4059994]
[1750946360929,0.6176219,107020.0,107010.0,1.4049994]
[1750946361129,0.6186219,107020.0,107010.0,1.4049994]
[1750946361428,0.5488219,107020.0,107010.0,1.4049994]
[1750946361822,0.362,107020.0,107010.0,1.76539934]
[1750946363632,0.001,107030.0,107020.0,0.1868219]
[1750946363940,0.001,107030.0,107020.0,1.30522184]
[1750946364127,0.001,107030.0,107020.0,0.97522184]
[1750946364327,0.001,107030.0,107020.0,1.04895071]
[1750946365330,0.1928044,107030.0,107020.0,1.04995071]
[1750946365836,0.006,107030.0,107020.0,1.04995071]
[1750946366036,0.1928045,107030.0,107020.0,1.04995071]
[1750946366335,0.69320444,107030.0,107020.0,1.3684219]
[1750946366730,0.3328045,107030.0,107020.0,1.3684219]
[1750946367739,0.146,107030.0,107020.0,1.72882184]
[1750946368940,0.3328045,107030.0,107020.0,1.72882184]
[1750946369832,0.146,107030.0,107020.0,1.72882184]
[1750946370234,0.3328045,107030.0,107020.0,1.72882184]
[1750946370639,0.146,107030.0,107020.0,1.72882184]
[1750946371628,0.3328045,107030.0,107020.0,1.72882184]
[1750946371833,0.3330045,107030.0,107020.0,1.72902184]
[1750946372133,0.92340444,107030.0,107020.0,1.3011819]
[1750946372329,0.99190444,107030.0,107020.0,0.5488219]
[1750946372538,0.99190444,107030.0,107020.0,0.3379019]
[1750946374238,0.6315045,107030.0,107020.0,0.3379019]
[1750946374434,0.99190444,107030.0,107020.0,0.3379019]
[1750946374840,0.6315045,107030.0,107020.0,0.90922184]
[1750946375036,0.3762,107030.0,107020.0,1.00842184]
[1750946375237,0.0062,107030.0,107020.0,1.00842184]
[1750946377036,0.0062,107030.0,107020.0,1.31842184]
[1750946377244,0.0062,107030.0,107020.0,1.00842184]
[1750946377537,0.0062,107030.0,107020.0,1.32842184]
[1750946377739,0.0062,107030.0,107020.0,1.00842184]
[1750946377939,0.0062,107030.0,107020.0,1.33842184]
[1750946378440,0.0062,107030.0,107020.0,0.9780219]
[1750946378648,0.0062,107030.0,107020.0,1.33842184]
[1750946384161,0.0062,107030.0,107020.0,1.69922184]
[1750946385059,0.0062,107030.0,107020.0,1.3388219]
[1750946385258,0.0062,107030.0,107020.0,1.69922184]
[1750946386361,0.3341494,107060.0,107050.0,0.1867696]
[1750946386561,0.66674681,107060.0,107050.0,1.2985296]
[1750946386753,1.02714675,107060.0,107050.0,1.2985296]
[1750946387156,0.66674681,107060.0,107050.0,1.2985296]
[1750946388063,1.02714675,107060.0,107050.0,1.2985296]
[1750946388263,1.03014675,107060.0,107050.0,1.2985296]
[1750946389361,1.03014675,107060.0,107050.0,0.5475696]
[1750946389560,1.03014675,107060.0,107050.0,1.2984096]
[1750946389956,1.03014675,107060.0,107050.0,1.2983696]
[1750946390462,1.03414675,107060.0,107050.0,1.2993696]
[1750946390759,1.03414675,107060.0,107050.0,0.3618]
[1750946390961,1.03414675,107060.0,107050.0,0.1877696]
[1750946391167,1.39494675,107060.0,107050.0,0.7892496]
[1750946391464,1.03454681,107060.0,107050.0,0.7892496]
[1750946391664,1.39494675,107060.0,107050.0,0.7892496]
[1750946391968,1.39494675,107060.0,107050.0,0.001]
[1750946392263,1.39494675,107060.0,107050.0,0.1877696]
[1750946392665,1.39494675,107060.0,107050.0,0.001]
[1750946393167,1.39494675,107060.0,107050.0,0.1877696]
[1750946393566,1.39494675,107060.0,107050.0,0.001]
[1750946393763,1.03454681,107060.0,107050.0,0.001]
[1750946393963,1.39494675,107060.0,107050.0,0.001]
[1750946394667,1.03454681,107060.0,107050.0,0.001]
[1750946394854,1.39494675,107060.0,107050.0,0.001]
[1750946396471,0.186787,107040.0,107030.0,0.6409916]
[1750946396663,0.92979789,107040.0,107030.0,0.3608]
[1750946396863,1.02839789,107040.0,107030.0,0.5476045]
[1750946397063,0.1868045,107030.0,107020.0,0.8369193]
[1750946397264,0.97350444,107030.0,107020.0,0.78984239]
[1750946397466,0.97350444,107030.0,107020.0,0.64064239]
[1750946398472,0.97350444,107030.0,107020.0,0.64264239]
[1750946399865,0.97350444,107030.0,107020.0,0.64564239]
[1750946399866,0.97450444,107030.0,107020.0,0.64564239]
[1750946400667,0.361,107030.0,107020.0,1.00604233]
[1750946400874,0.3178045,107030.0,107020.0,1.10644233]
[1750946401075,0.3525045,107030.0,107020.0,0.74604239]
[1750946401261,0.5925045,107030.0,107020.0,1.24676239]
[1750946401462,0.98690444,107030.0,107020.0,0.55223439]
[1750946402067,1.58798444,107030.0,107020.0,0.55223439]
[1750946403273,0.6265045,107030.0,107020.0,0.55223439]
[1750946403474,0.58059234,107030.0,107020.0,1.01073433]
[1750946403863,0.58059234,107030.0,107020.0,0.65033439]
[1750946404973,0.64869234,107030.0,107020.0,0.65033439]
[1750946405575,1.00909228,107030.0,107020.0,0.65033439]
[1750946407380,0.39378784,107030.0,107020.0,1.37153433]
[1750946407679,0.1867696,107050.0,107040.0,0.326856]
[1750946407881,0.20897219,107050.0,107040.0,2.47897594]
[1750946408073,0.20897219,107050.0,107040.0,2.25897594]
[1750946408273,0.20897219,107050.0,107040.0,2.35927594]
[1750946408578,0.0225755,107050.0,107040.0,2.35927594]
[1750946408781,0.2093451,107050.0,107040.0,2.35927594]
[1750946408984,0.0235755,107050.0,107040.0,2.35927594]
[1750946409175,0.0235755,107050.0,107040.0,2.57927594]
[1750946409369,0.0235755,107050.0,107040.0,2.31927594]
[1750946409572,0.0235755,107050.0,107040.0,2.32927594]
[1750946410379,0.2113451,107050.0,107040.0,2.33027594]
[1750946410568,0.0245755,107050.0,107040.0,2.33027594]
[1750946410768,0.2113451,107050.0,107040.0,2.33027594]
[1750946411175,0.2113451,107050.0,107040.0,1.9231801]
[1750946411375,0.2113451,107050.0,107040.0,1.8529801]
[1750946411984,0.2113451,107050.0,107040.0,2.21338004]
[1750946412371,0.2113451,107050.0,107040.0,1.8529801]
[1750946412679,0.5413451,107050.0,107040.0,2.21338004]
[1750946412982,0.2113451,107050.0,107040.0,2.21338004]
[1750946413182,0.1887696,107050.0,107040.0,2.21338004]
[1750946413383,0.21096936,107050.0,107040.0,2.21338004]
[1750946414276,0.1887696,107050.0,107040.0,2.21338004]
[1750946414776,0.2109689,107050.0,107040.0,2.21338004]
[1750946415581,0.1887696,107050.0,107040.0,2.21338004]
[1750946415885,0.002,107050.0,107040.0,2.21338004]
[1750946416382,0.002,107050.0,107040.0,2.59338004]
[1750946417280,0.002,107050.0,107040.0,2.95377998]
[1750946417581,0.001,107060.0,107050.0,0.1867696]
[1750946417878,0.001,107060.0,107050.0,1.33416954]
[1750946418081,0.02322274,107060.0,107050.0,1.33416954]
[1750946418575,0.02322274,107060.0,107050.0,1.35335932]
[1750946419179,0.02522274,107060.0,107050.0,1.35335932]
[1750946419481,0.21197484,107060.0,107050.0,1.35335932]
[1750946419782,0.21197484,107060.0,107050.0,0.99335932]
[1750946419982,0.21197484,107060.0,107050.0,0.97416954]
[1750946420284,0.21197484,107060.0,107050.0,1.72400954]
[1750946420285,0.56397484,107060.0,107050.0,1.72400954]
[1750946420479,0.21397484,107060.0,107050.0,1.72400954]
[1750946420686,0.02722274,107060.0,107050.0,1.3636096]
[1750946420884,0.02722274,107060.0,107050.0,1.72400954]
[1750946421274,0.21397484,107060.0,107050.0,1.74343086]
[1750946421885,0.21397484,107060.0,107050.0,1.72400954]
[1750946422087,0.57397484,107060.0,107050.0,1.3635696]
[1750946422587,0.37397484,107060.0,107050.0,1.3635696]
[1750946423379,0.37397484,107060.0,107050.0,1.12368954]
[1750946425187,0.18722274,107060.0,107050.0,1.12368954]
[1750946425382,0.18742274,107060.0,107050.0,1.12388954]
[1750946425782,0.02742274,107060.0,107050.0,1.46388954]
[1750946426385,0.02742274,107060.0,107050.0,2.06392954]
[1750946430588,0.02742274,107060.0,107050.0,2.07392954]
[1750946430783,0.02742274,107060.0,107050.0,1.72392954]
[1750946431287,0.02742274,107060.0,107050.0,0.5487696]
[1750946431288,0.1919521,107060.0,107050.0,0.5487696]
[1750946431491,0.97818364,107060.0,107050.0,1.2971295]
[1750946431688,1.04468364,107060.0,107050.0,1.2971295]
[1750946431992,1.04468364,107060.0,107050.0,0.1879695]
[1750946432187,1.04468364,107060.0,107050.0,0.3364895]
[1750946432384,1.02245204,107060.0,107050.0,0.6972895]
[1750946432681,0.6620521,107060.0,107050.0,0.6972895]
[1750946432885,0.6620521,107060.0,107050.0,1.05768944]
[1750946433092,0.2920521,107060.0,107050.0,0.6972895]
[1750946433791,0.2920521,107060.0,107050.0,1.12308944]
[1750946433792,0.2596521,107060.0,107050.0,1.12308944]
[1750946434595,0.0729,107060.0,107050.0,1.12308944]
[1750946434794,0.0388,107060.0,107050.0,1.12308944]
[1750946434994,0.0052,107060.0,107050.0,1.12308944]
[1750946435194,0.0052,107060.0,107050.0,1.47308944]
[1750946435895,0.0052,107060.0,107050.0,1.12308944]
[1750946436193,0.0052,107060.0,107050.0,1.46308944]
[1750946437896,0.1867174,107080.0,107070.0,0.3267597]
[1750946438193,0.31,107080.0,107070.0,2.15687964]
[1750946438389,0.31,107080.0,107070.0,2.54227964]
[1750946438590,0.2978753,107090.0,107070.0,2.54227964]
[1750946438591,0.2978753,107090.0,107080.0,0.1867172]
[1750946438790,0.5812002,107090.0,107080.0,0.90791714]
[1750946438994,0.5812002,107090.0,107080.0,1.00751714]
[1750946439799,0.5812002,107090.0,107080.0,0.6471172]
[1750946440296,0.5812002,107090.0,107080.0,0.6461172]
[1750946440900,0.5882002,107090.0,107080.0,0.6471172]
[1750946441396,0.5882002,107090.0,107080.0,0.5475172]
[1750946442595,0.5882002,107090.0,107080.0,0.90791714]
[1750946442800,0.3696,107090.0,107080.0,1.00471714]
[1750946443000,0.5532998,107090.0,107080.0,1.00471714]
[1750946443299,0.5512998,107090.0,107080.0,1.00371714]
[1750946443601,0.5856998,107090.0,107080.0,0.6433172]
[1750946444200,0.003,107090.0,107080.0,1.73368807]
[1750946444594,0.003,107090.0,107080.0,1.37328813]
[1750946444802,0.003,107090.0,107080.0,1.73368807]
[1750946445299,0.003,107090.0,107080.0,1.37328813]
[1750946445495,0.003,107090.0,107080.0,1.02328813]
[1750946445700,0.003,107090.0,107080.0,1.39328813]
[1750946446200,0.002,107090.0,107080.0,1.75368807]
[1750946446905,0.002,107090.0,107080.0,1.77040813]
[1750946447095,0.001,107090.0,107080.0,2.13040813]
[1750946447296,0.001,107090.0,107080.0,2.13140813]
[1750946447693,0.001,107090.0,107080.0,2.13240813]
[1750946447904,0.001,107090.0,107080.0,2.49480807]
[1750946448299,0.001,107090.0,107080.0,2.13432813]
[1750946448501,0.001,107090.0,107080.0,2.49472807]
[1750946448701,0.001,107090.0,107080.0,2.13432813]
[1750946451508,0.001,107090.0,107080.0,2.12420813]
[1750946451908,0.001,107090.0,107080.0,1.67732813]
[1750946452106,0.001,107090.0,107080.0,1.77702813]
[1750946452508,0.2176995,107090.0,107080.0,1.75745714]
[1750946452710,0.2840995,107090.0,107080.0,1.75745714]
[1750946452903,0.2840995,107090.0,107080.0,0.91091714]
[1750946453210,0.4840995,107090.0,107080.0,0.6983972]
[1750946453403,0.4840995,107090.0,107080.0,1.2973172]
[1750946453708,0.4840995,107090.0,107080.0,1.65771714]
[1750946454209,0.4840995,107090.0,107080.0,1.2973172]
[1750946455816,0.4840995,107090.0,107080.0,0.5505172]
[1750946456012,0.98030076,107090.0,107080.0,0.0042]
[1750946456214,1.35867135,107090.0,107080.0,0.0042]
[1750946456516,1.55664064,107090.0,107080.0,0.0042]
[1750946457113,1.135137,107090.0,107080.0,0.0042]
[1750946457312,1.55664064,107090.0,107080.0,0.0042]
[1750946458717,2.15544064,107090.0,107080.0,0.0042]
[1750946458921,2.15544064,107090.0,107080.0,0.0032]
[1750946459321,2.43529514,107090.0,107050.0,0.640935]
[1750946459623,0.1867518,107060.0,107050.0,0.8355069]
[1750946459825,0.5367518,107060.0,107050.0,0.83513399]
[1750946460011,0.6346518,107060.0,107050.0,0.83513399]
[1750946460524,0.6003518,107060.0,107050.0,1.25663763]
[1750946460823,0.6013518,107060.0,107050.0,1.32683763]
[1750946461014,0.041,107060.0,107050.0,1.32683763]
[1750946461210,0.041,107060.0,107050.0,1.25539874]
[1750946461412,0.001,107060.0,107050.0,2.38199874]
[1750946463326,0.001,107060.0,107050.0,2.38499874]
[1750946464415,0.001,107060.0,107050.0,1.40839874]
[1750946464615,0.1877518,107060.0,107050.0,1.40839874]
[1750946464825,0.1877518,107060.0,107050.0,2.00491874]
[1750946465017,0.1877518,107060.0,107050.0,2.38491874]
[1750946465217,0.001,107060.0,107050.0,2.38491874]
[1750946465418,0.001,107060.0,107050.0,1.63839874]
[1750946465615,0.02352891,107060.0,107050.0,2.38491874]
[1750946466720,0.001,107060.0,107050.0,2.38491874]
[1750946470020,0.1001,107090.0,107080.0,0.186716]
[1750946470226,0.64558897,107090.0,107080.0,1.56741964]
[1750946470425,0.64558897,107090.0,107080.0,1.66371964]
[1750946470624,0.06632709,107090.0,107080.0,1.242216]
[1750946470927,0.09062709,107090.0,107080.0,1.66371964]
[1750946471335,0.00062709,107090.0,107080.0,1.66371964]
[1750946471523,0.00362709,107090.0,107080.0,1.66471964]
[1750946471831,0.00462709,107090.0,107080.0,1.66471964]
[1750946472329,0.00462709,107090.0,107080.0,1.68169188]
[1750946472524,0.00462709,107090.0,107080.0,1.66471964]
[1750946472728,0.00362709,107090.0,107080.0,1.66471964]
[1750946472927,0.00362709,107090.0,107080.0,1.66571964]
[1750946473128,0.00362709,107090.0,107080.0,2.02571964]
[1750946473633,0.00062709,107090.0,107080.0,2.02771964]
[1750946475325,0.18732569,107090.0,107080.0,0.647816]
[1750946475524,0.00062709,107090.0,107080.0,1.81543964]
[1750946476129,0.18732569,107090.0,107080.0,1.06931964]
[1750946476332,0.28302569,107090.0,107080.0,1.81555964]
[1750946478036,0.28302569,107090.0,107080.0,0.648016]
[1750946478235,0.28302569,107090.0,107080.0,1.297156]
[1750946478541,0.31692569,107090.0,107080.0,1.297156]
[1750946478833,0.28692569,107090.0,107080.0,1.11036]
[1750946479041,1.31922933,107090.0,107080.0,0.0042]
[1750946479533,1.34184513,107090.0,107080.0,0.0042]
[1750946479930,1.59184513,107090.0,107080.0,0.0042]
[1750946480838,0.1867509,107060.0,107050.0,1.41413514]
[1750946481037,0.5667509,107060.0,107050.0,0.6948829]
[1750946481240,0.6337509,107060.0,107050.0,0.6948829]
[1750946481845,0.3737509,107060.0,107050.0,0.6948829]
[1750946482134,0.2547509,107060.0,107050.0,0.7048829]
[1750946482342,0.2847509,107060.0,107050.0,0.5575629]
[1750946482530,0.5947509,107060.0,107050.0,0.5575629]
[1750946482833,0.3647509,107060.0,107050.0,0.5555629]
[1750946483844,0.3647509,107060.0,107050.0,0.5515629]
[1750946484145,0.3647509,107060.0,107050.0,0.5535629]
[1750946484440,0.3647509,107060.0,107050.0,0.6181629]
[1750946484938,0.111,107060.0,107050.0,1.40966654]
[1750946485143,0.001,107060.0,107050.0,1.40966654]
[1750946485840,0.1877509,107060.0,107050.0,1.04966654]
[1750946486645,0.1877509,107060.0,107050.0,0.6281629]
[1750946487445,0.1877509,107060.0,107050.0,0.6181629]
[1750946487645,0.1877509,107060.0,107050.0,1.03966654]
[1750946488544,0.2218509,107060.0,107050.0,1.3301879]
[1750946488737,0.2563509,107060.0,107050.0,0.5850679]
[1750946488940,0.2563509,107060.0,107050.0,1.3301879]
[1750946489748,0.2563509,107060.0,107050.0,1.2986879]
[1750946489946,0.3102019,107060.0,107050.0,0.7008879]
[1750946490144,0.3102019,107060.0,107050.0,1.2986879]
[1750946492758,0.3102019,107060.0,107050.0,0.5535679]
[1750946493044,0.3102019,107060.0,107050.0,1.1512879]
[1750946493551,0.2876509,107060.0,107050.0,1.1512879]
[1750946493851,0.2976509,107060.0,107050.0,0.5535679]
[1750946494348,0.71915454,107060.0,107050.0,0.006]
[1750946494646,1.43244221,107060.0,107050.0,0.006]
[1750946495344,1.43244221,107060.0,107050.0,0.1927679]
[1750946495540,1.07164221,107060.0,107050.0,0.1927679]
[1750946495742,0.65013857,107060.0,107050.0,0.97507154]
[1750946496041,0.65013857,107060.0,107050.0,0.5535679]
[1750946497846,1.07164221,107060.0,107050.0,0.006]
[1750946498051,1.07184221,107060.0,107050.0,0.5537679]
[1750946499145,0.65033857,107060.0,107050.0,0.5537679]
[1750946499848,0.2878509,107060.0,107050.0,0.5537679]
[1750946500052,0.5924509,107060.0,107050.0,0.6561679]
[1750946500750,0.6261509,107060.0,107050.0,0.6561679]
[1750946501255,1.04765454,107060.0,107050.0,0.367]
[1750946501648,1.04765454,107060.0,107050.0,0.0062]
[1750946502251,0.6261509,107060.0,107050.0,0.0062]
[1750946502556,1.04765454,107060.0,107050.0,0.0062]
[1750946502956,1.40845454,107060.0,107050.0,0.0062]
[1750946503253,1.43088436,107060.0,107050.0,0.0062]
[1750946504048,1.07008436,107060.0,107050.0,0.1909677]
[1750946504249,1.04765454,107060.0,107050.0,0.5527677]
[1750946504450,0.64858603,107060.0,107050.0,0.5497677]
[1750946504845,0.64858603,107060.0,107050.0,0.6512677]
[1750946505445,0.61488603,107060.0,107050.0,0.6512677]
[1750946507155,0.61488603,107060.0,107050.0,0.363]
[1750946507355,0.64688603,107060.0,107050.0,0.363]
[1750946507553,1.42918967,107060.0,107050.0,0.0022]
[1750946508153,1.00768603,107060.0,107050.0,0.0022]
[1750946508349,1.42918967,107060.0,107050.0,0.0022]
[1750946509158,2.02646967,107060.0,107050.0,0.0022]
[1750946509958,2.10142448,107060.0,107050.0,0.0022]
[1750946511258,2.35142448,107060.0,107050.0,0.0022]
[1750946512851,2.35122448,107060.0,107050.0,1e-07]
[1750946514252,2.10122448,107060.0,107050.0,1e-07]
[1750946516459,0.64668603,107060.0,107050.0,0.5475649]
[1750946516664,0.25018603,107060.0,107050.0,0.96906854]
[1750946516961,0.54018603,107060.0,107050.0,1.03256854]
[1750946517166,0.22018603,107060.0,107050.0,0.6110649]
[1750946520556,0.22018603,107060.0,107050.0,1.03256854]
[1750946520957,0.22018173,107060.0,107050.0,1.20256854]
[1750946521267,0.22018173,107060.0,107050.0,1.79940854]
[1750946521666,0.03343513,107060.0,107050.0,1.79940854]
[1750946521866,0.02343513,107060.0,107050.0,1.93940854]
[1750946523369,0.21018163,107060.0,107050.0,2.08616854]
[1750946524369,0.21018163,107060.0,107050.0,1.34256854]
[1750946524572,0.21018163,107060.0,107050.0,1.424544]
[1750946524870,0.21018163,107060.0,107050.0,1.354544]
[1750946525258,0.58018163,107060.0,107050.0,0.4243001]
[1750946525464,1.00168527,107060.0,107050.0,0.0318001]
[1750946525663,1.06778527,107060.0,107050.0,1e-07]
[1750946526967,0.64628163,107060.0,107050.0,1e-07]
[1750946527168,1.06778527,107060.0,107050.0,1e-07]
[1750946528269,0.64628163,107060.0,107050.0,1e-07]
[1750946529367,0.58018163,107060.0,107050.0,0.5475642]
[1750946529667,0.58038163,107060.0,107050.0,0.4266001]
[1750946529873,1.00188527,107060.0,107050.0,0.0002001]
[1750946530069,1.06888527,107060.0,107050.0,0.0002001]
[1750946530576,0.64738163,107060.0,107050.0,0.1869642]
[1750946531074,0.6249465,107060.0,107050.0,0.2528642]
[1750946531374,0.5921465,107060.0,107050.0,0.2528642]
[1750946531565,0.61465299,107060.0,107050.0,0.2528642]
[1750946531761,0.5921465,107060.0,107050.0,0.2528642]
[1750946531972,0.61465299,107060.0,107050.0,0.2528642]
[1750946532568,0.5921465,107060.0,107050.0,0.2528642]
[1750946533168,0.6146535,107060.0,107050.0,0.2528642]
[1750946533870,0.6146535,107060.0,107050.0,0.6136642]
[1750946534072,0.6146535,107060.0,107050.0,1.03516784]
[1750946534073,0.393707,107060.0,107050.0,1.03516784]
[1750946534368,0.153707,107060.0,107050.0,1.96144784]
[1750946534764,0.153707,107060.0,107050.0,1.63144784]
[1750946534966,0.3404537,107060.0,107050.0,1.63144784]
[1750946535169,0.3404537,107060.0,107050.0,1.2099442]
[1750946535369,0.3179467,107060.0,107050.0,1.63144784]
[1750946537776,0.3179467,107060.0,107050.0,0.84840374]
[1750946538076,0.3179467,107060.0,107050.0,1.3560243]
[1750946539477,0.1879467,107060.0,107050.0,0.3942001]
[1750946539679,0.93945034,107060.0,107050.0,0.5404001]
[1750946539875,1.00425034,107060.0,107050.0,0.5404001]
[1750946540174,1.00425034,107060.0,107050.0,0.3942001]
[1750946540175,0.5827467,107060.0,107050.0,0.3942001]
[1750946540676,0.60525763,107060.0,107050.0,0.3942001]
[1750946540977,1.02676127,107060.0,107050.0,0.0002001]
[1750946543083,1.38756127,107060.0,107050.0,0.0002001]
[1750946545781,1.38756127,107060.0,107050.0,0.96926794]
[1750946545782,0.60525763,107060.0,107050.0,0.96926794]
[1750946545975,0.54045763,107060.0,107050.0,0.96926794]
[1750946546175,0.54045763,107060.0,107050.0,1.03556794]
[1750946546582,0.54045763,107060.0,107050.0,1.63136794]
[1750946546783,0.23045763,107060.0,107050.0,1.63136794]
[1750946547875,0.23045783,107060.0,107050.0,1.63136794]
[1750946548075,0.0212,107060.0,107050.0,1.95136794]
[1750946548580,0.04369596,107060.0,107050.0,1.95136794]
[1750946548784,0.0212,107060.0,107050.0,1.95136794]
[1750946548978,0.3267659,107080.0,107070.0,0.1867294]
[1750946549278,0.66220823,107080.0,107070.0,1.71095304]
[1750946549477,0.38249664,107080.0,107070.0,1.79251447]
[1750946549672,0.02249664,107080.0,107070.0,2.10251447]
[1750946549873,0.23399819,107090.0,107080.0,0.186712]
[1750946550074,0.61316065,107090.0,107080.0,1.06901564]
[1750946550271,0.59067399,107090.0,107080.0,0.641512]
[1750946550683,0.54399819,107090.0,107080.0,0.641512]
[1750946550884,0.49732389,107090.0,107080.0,0.641512]
[1750946551079,0.31062709,107090.0,107080.0,0.71684109]
[1750946551382,0.49732139,107090.0,107080.0,0.71684109]
[1750946551571,0.49732139,107090.0,107080.0,1.13834473]
[1750946551976,0.49832139,107090.0,107080.0,1.13934473]
[1750946552180,0.25832139,107090.0,107080.0,1.13934473]
[1750946552887,0.25832139,107090.0,107080.0,1.46056109]
[1750946555077,0.25832139,107090.0,107080.0,1.27968909]
[1750946555279,0.25832139,107090.0,107080.0,1.46640069]
[1750946556187,0.50832139,107090.0,107080.0,0.17732909]
[1750946556382,0.92982503,107090.0,107080.0,1.17964909]
[1750946556578,0.60872139,107090.0,107080.0,0.3628]
[1750946557185,0.54232139,107090.0,107080.0,0.5495116]
[1750946557374,0.50832139,107090.0,107080.0,1.07251524]
[1750946558181,0.50832139,107090.0,107080.0,0.6510116]
[1750946559686,0.50832139,107090.0,107080.0,0.72394203]
[1750946560185,0.50832139,107090.0,107080.0,1.46530203]
[1750946561083,0.57742139,107090.0,107080.0,1.46530203]
[1750946561982,0.99892503,107090.0,107080.0,0.74332]
[1750946562279,1.03222503,107090.0,107080.0,0.3349115]
[1750946562480,0.61072139,107090.0,107080.0,0.6957115]
[1750946562885,0.57742139,107090.0,107080.0,0.6957115]
[1750946563792,0.50832139,107090.0,107080.0,0.6957115]
[1750946563990,0.50832139,107090.0,107080.0,0.8010115]
[1750946564185,0.50832139,107090.0,107080.0,1.22251514]
[1750946564385,0.50832139,107090.0,107080.0,1.2980404]
[1750946564584,0.32162709,107090.0,107080.0,1.6480404]
[1750946564891,0.12162709,107090.0,107080.0,1.6480404]
[1750946566385,0.12162709,107090.0,107080.0,1.2980404]
[1750946566690,0.12182709,107090.0,107080.0,1.2982404]
[1750946567483,0.12182709,107090.0,107080.0,1.6582404]
[1750946567684,0.00182709,107090.0,107080.0,1.6582404]
[1750946568892,0.001,107120.0,107110.0,0.1866592]
[1750946569085,0.49739205,107120.0,107110.0,2.17133259]
[1750946569282,0.51969571,107120.0,107110.0,2.17133259]
[1750946569491,0.51969571,107120.0,107110.0,1.74982895]
[1750946569786,0.58699571,107120.0,107110.0,1.74982895]
[1750946570185,0.33305391,107120.0,107110.0,2.17133259]
[1750946570488,0.51969581,107120.0,107110.0,2.17133259]
[1750946570784,0.52069581,107120.0,107110.0,2.17133259]
[1750946570990,0.33405391,107120.0,107110.0,2.17133259]
[1750946571182,0.31275025,107120.0,107110.0,2.17133259]
[1750946572187,0.49939215,107120.0,107110.0,2.17133259]
[1750946572992,0.49939215,107120.0,107110.0,1.74982895]
[1750946573192,0.52175156,107120.0,107110.0,1.74982895]
[1750946573896,0.58745156,107120.0,107110.0,1.76550657]
[1750946574194,0.58745156,107120.0,107110.0,0.97600895]
[1750946574491,0.59779215,107120.0,107110.0,1.50306895]
[1750946576493,0.59779215,107120.0,107110.0,1.10108975]